[Event "13th Rheinland-Pfalz-Open 2023"]
[Site "Neuwied-Engers"]
[Date "2023.06.08"]
[Round "1.1"]
[White "Peng, Li Min"]
[Black "Bursch, Alexander"]
[Result "1-0"]
[Annotator "TA"]
[ECO "B07"]
[WhiteElo "2530"]
[BlackElo "1690"]
[PlyCount "43"]
[EventDate "2023.01.12"]
[EventType "swiss"]
[EventCountry "GER"]
[SourceTitle "playchess.com"]
[Source "ChessBase"]
[SourceQuality "1"]
[TimeControl "40/5400+30:1800+30"]

{[%evp 10,43,53,36,64,48,96,96,227,228,225,181,184,67,69,35,32,23,500,498,496,497,499,498,489,484,560,508,503,462,475,455,515,506,497,484]} 1. d4 {[%emt 0:00:06]} Nf6 {[%emt 0:00:45]} 2. Bf4 {[%emt 0:00:19]} g6 {[%emt 0:00:49]} 3. Nc3 {[%emt 0:00:11]} Bg7 {[%emt 0:01:05]} 4. e4 {[%emt 0:00:15]} d6 {[%emt 0:00:56]} 5. Qd2 {[%emt 0:00:07]} O-O {[%emt 0:05:03]} 6. O-O-O {[%emt 0:00:18]} Nbd7 {[%emt 0:03:07] B07: Pirc Defence: Miscellaneous Systems.} 7. e5 {[%emt 0:01:24] White is more active.} dxe5 {[%emt 0:06:54]} (7... Nh5 $14) 8. dxe5 $16 {[%emt 0:00:06]} Ng4 {[%emt 0:01:40]} (8... Nh5 $16) 9. Nf3 $18 {[%emt 0:00:11][%cal Bg1f3,Bf3e5,Be5d3][%mdl 32] [#] Threatens to win with h3.} Qe8 {[%emt 0:02:26][%cal Rg4e5] [#]} 10. Nb5 $146 {[%emt 0:01:30]} ({Predecessor:} 10. Bc4 Ngxe5 11. Nxe5 Nxe5 12. Bb3 c6 13. Bh6 Bf5 14. Rhe1 Ng4 15. Bxg7 Kxg7 16. h3 {0-1 Cabrera Gallego,A (1185)-Boix Torres,A Llinars del Valles op-B 13th 2019 (7)}) 10... Ndxe5 {[%emt 0:03:58]} 11. Nxc7 {[%emt 0:00:09]} (11. Nxe5 $18 Nxe5 12. Re1 (12. Nxc7 Qa4 $16)) 11... Qa4 $14 {[%emt 0:02:08][%cal Oa4a2] And now ...Qxa2! would win.} 12. Kb1 {[%emt 0:00:07]} Bf5 {[%emt 0:12:59] [#] ...Nxf3 is the strong threat.} 13. Nxe5 {[%emt 0:00:24]} Bxc2+ $2 {[%emt 0:21:13][%mdl 8192]} (13... Rad8 $1 $11 {and Black has nothing to worry.} 14. Bb5 (14. Qxd8 Bxc2+ 15. Ka1 Bxd1 $17) 14... Rxd2 15. Bxa4 Rxd1+ 16. Rxd1 Bxe5 17. Bxe5 Nxe5) 14. Qxc2 $18 {[%emt 0:00:56] White is clearly winning.} Qxf4 {[%emt 0:00:32]} 15. Nd3 {[%emt 0:00:14]} ({Not} 15. Nxg4 Rac8 $18) 15... Qf5 {[%emt 0:02:10]} 16. Nxa8 {[%emt 0:00:07]} Rxa8 {[%emt 0:01:13]} 17. Be2 {[%emt 0:00:10]} Rc8 {[%emt 0:02:39]} 18. Qb3 {[%emt 0:00:38]} Ne5 {[%emt 0:04:46]} 19. Qd5 {[%emt 0:01:11]} e6 {[%emt 0:04:43]} 20. g4 {[%emt 0:00:15][%cal Bg2g4,Bg4f5][%mdl 32]} Nxd3 {[%emt 0:03:52]} 21. gxf5 {[%emt 0:00:17]} exd5 {[%emt 0:00:33]} 22. Bxd3 {[%emt 0:00:08] Weighted Error Value: White=0.21 (precise) /Black=0.41} 1-0

[Event "13th Rheinland-Pfalz-Open 2023"]
[Site "Neuwied-Engers"]
[Date "2023.06.08"]
[Round "1.3"]
[White "Karsay, Pascal"]
[Black "Gasber, Johannes"]
[Result "1-0"]
[Annotator "TA"]
[ECO "E04"]
[WhiteElo "2338"]
[BlackElo "1687"]
[PlyCount "54"]
[EventDate "2023.01.12"]
[EventType "swiss"]
[EventCountry "GER"]
[SourceTitle "playchess.com"]
[Source "ChessBase"]
[SourceQuality "1"]
[TimeControl "40/5400+30:1800+30"]

{[%evp 23,54,23,21,19,30,28,32,40,88,83,96,74,118,128,265,250,293,-800,-2,0,-10,-25,384,-37,0,0,331,325,360,299,412,347,379]} 1. d4 {[%emt 0:00:03]} Nf6 {[%emt 0:00:09]} 2. c4 {[%emt 0:00:12]} e6 {[%emt 0:00:08]} 3. Nf3 {[%emt 0:00:33]} d5 {[%emt 0:00:08]} 4. g3 {[%emt 0:00:20]} dxc4 {[%emt 0:00:12]} 5. Bg2 {[%emt 0:00:18]} c5 {[%emt 0:00:12]} 6. O-O {[%emt 0:00:38]} Nc6 {[%emt 0:00:13]} 7. dxc5 {[%emt 0:00:39]} Qxd1 {[%emt 0:00:21]} 8. Rxd1 {[%emt 0:00:07]} Bxc5 {[%emt 0:00:10]} 9. Nbd2 {[%emt 0:00:17]} c3 {[%emt 0:00:34]} 10. bxc3 {[%emt 0:00:07]} O-O {[%emt 0:02:14]} 11. Nb3 {[%emt 0:00:28]} Be7 {[%emt 0:02:22]} 12. Nfd4 {[%emt 0:02:18]} Bd7 {[%emt 0:03:09]} 13. Nb5 {[%emt 0:02:12] E04: Open Catalan: 5 Nf3.} Rfd8 {[%emt 0:11:23]} 14. Be3 {[%emt 0:05:45]} Ne5 {[%emt 0:17:17]} 15. a4 {[%emt 0:03:44] White is slightly better.} a6 {[%emt 0:08:26]} (15... Bc6 $14) 16. Bxb7 $16 {[%emt 0:29:00] White has more active pieces.} axb5 {[%emt 0:00:34]} 17. Bxa8 {[%emt 0:04:26] axb5 would be deadly.} Rxa8 {[%emt 0:00:22] [#]} 18. Bd4 $1 {[%emt 0:00:09] [#]} Bd6 $146 {[%emt 0:25:54]} (18... bxa4 $16 19. Bxe5 Bb5) ({Predecessor:} 18... Neg4 19. axb5 Rxa1 20. Rxa1 Bxb5 21. h3 e5 22. Ra8+ Ne8 23. hxg4 exd4 24. Nxd4 Bd7 25. Ra7 Nf6 26. g5 Bc5 27. Rb7 Bxd4 28. gxf6 Bxc3 29. Rb8+ {1-0 Thybo,J (2579)-Sveshnikov,E (2481) Gilleleje Xtracon 2020 (8)}) 19. axb5 $18 {[%emt 0:00:23]} Rxa1 {[%emt 0:08:49]} 20. Rc1 {[%emt 0:48:51][%mdl 8192]} (20. Rxa1 $18 Kf8 21. b6) 20... Rb1 $2 (20... Rxc1+ $19 21. Nxc1 Bxb5) 21. Rxb1 $11 {[%emt 0:00:00] Hoping for b6.} Bxb5 {[%emt 0:05:29]} 22. Ra1 {[%emt 0:00:00] Ra5 is the strong threat.} Bc4 $2 {[%emt 0:00:06][%mdl 8192] [#]} (22... Bxe2 $2 23. Ra8+ Bf8 24. Bxe5 $18) (22... Nc4 $11 {and Black has nothing to worry.}) 23. Ra5 $2 {[%emt 0:00:00]} Bxb3 {A strong pair of Bishops.} (23... Ned7 $5 {[%cal Rc4b3]} 24. Ra8+ Bf8 $15) 24. Bxe5 {[%emt 0:00:00]} h5 $2 {[%mdl 8192]} 25. Bxd6 $18 {[%emt 0:00:00]} Nd5 {[%emt 0:01:52]} 26. f3 {[%emt 0:00:00]} h4 {[%emt 0:03:27]} 27. Rc5 {[%emt 0:00:00]} ({Don't play} 27. gxh4 Nxc3 28. e4 Nd1 29. Ra8+ Kh7 $18) 27... Ne3 {[%emt 0:01:41] Weighted Error Value: White=0.68/Black=1.39} 1-0

[Event "13th Rheinland-Pfalz-Open 2023"]
[Site "Neuwied-Engers"]
[Date "2023.06.08"]
[Round "1.4"]
[White "Sheng, Ming"]
[Black "Baerwinkel, Tobias"]
[Result "0-1"]
[Annotator "TA"]
[ECO "B51"]
[WhiteElo "1675"]
[BlackElo "2324"]
[PlyCount "29"]
[EventDate "2023.01.12"]
[EventType "swiss"]
[EventCountry "GER"]
[SourceTitle "playchess.com"]
[Source "ChessBase"]
[SourceQuality "1"]
[TimeControl "40/5400+30:1800+30"]

{[%evp 11,13,10,22,16]} 1. e4 {[%emt 0:00:03]} c5 {[%emt 0:00:12]} 2. Nf3 {[%emt 0:00:11]} d6 {[%emt 0:01:02]} 3. Bb5+ {[%emt 0:00:23]} Nd7 {[%emt 0:00:42]} 4. d4 {[%emt 0:00:19]} cxd4 {[%emt 0:00:13]} 5. Qxd4 {[%emt 0:00:18]} a6 {[%emt 0:01:08]} 6. Bxd7+ {[%emt 0:00:15]} Bxd7 {[%emt 0:00:08]} 7. c4 {[%emt 0:00:26][%mdl 32768] [#] Not much happened in this game.  Loss on time!? B51: Sicilian: Moscow Variation (3 Bb5+) without 3...Bd7.} {Predecessor:} Rc8 $146 8. Nc3 e6 9. O-O Qc7 10. b3 b5 11. e5 bxc4 12. Ne4 dxe5 13. Nxe5 Bc6 14. Bb2 Bxe4 15. Qxe4 {½-½ Carlsen,M (2853)-So,W (2760) Chessable Masters Div 1 Lose rapid 2023 (2.2)} 0-1

[Event "13th Rheinland-Pfalz-Open 2023"]
[Site "Neuwied-Engers"]
[Date "2023.06.08"]
[Round "1.6"]
[White "Platten, Herbert"]
[Black "Syrov, Arkadi"]
[Result "0-1"]
[Annotator "TA"]
[ECO "E78"]
[WhiteElo "1673"]
[BlackElo "2298"]
[PlyCount "72"]
[EventDate "2023.01.12"]
[EventType "swiss"]
[EventCountry "GER"]
[SourceTitle "playchess.com"]
[Source "ChessBase"]
[SourceQuality "1"]
[TimeControl "40/5400+30:1800+30"]

{[%evp 14,71,13,0,6,-24,-16,-25,-9,-18,16,0,8,0,20,20,12,0,0,0,23,-32,-63,-62,-30,-212,-199,-254,32,-176,-162,-367,-367,-343,-302,-384,-408,-633,-631,-636,-629,-919,-894,-1125,-1024,-1810,-1663,-1708,-1445,-1539,-1390,-29993,-29994,-29994,-29995,-29997,-29998,-29998,-29999,-29999]} 1. d4 {[%emt 0:00:12]} Nf6 {[%emt 0:00:08]} 2. c4 {[%emt 0:00:15]} g6 {[%emt 0:00:19]} 3. Nc3 {[%emt 0:00:15]} Bg7 {[%emt 0:00:22]} 4. e4 {[%emt 0:00:15]} d6 {[%emt 0:00:07]} 5. f4 {[%emt 0:00:15]} O-O {[%emt 0:00:11]} 6. Nf3 {[%emt 0:01:10]} c5 {[%emt 0:00:51]} 7. Be2 {[%emt 0:01:37]} cxd4 {[%emt 0:02:12]} 8. Nxd4 {[%emt 0:00:13]} Nc6 {[%emt 0:02:07] E78: King's Indian: Four Pawns Attack: 6 Be2 c5 7 Nf3.} 9. Nxc6 {[%emt 0:02:10]} (9. Be3 $5) 9... bxc6 {[%emt 0:02:42]} 10. O-O {[%emt 0:00:09]} Rb8 {[%emt 0:03:25] Black has an edge.} 11. Rb1 {[%emt 0:01:27]} Qa5 {[%emt 0:08:50][%cal Of6g4]} 12. Be3 {[%emt 0:02:38]} (12. Kh1 $5) 12... Be6 {[%emt 0:02:55] [#]} 13. g4 $146 {[%emt 0:00:33]} ({Predecessor:} 13. h3 Rb7 14. Qd2 Rfb8 15. b3 Nh5 16. Bd4 Ng3 17. Bxg7 Nxf1 18. Rxf1 Kxg7 19. f5 {0-1 Ribes Cabrera,J (1950)-Beltran Reverter,J (1809) Tarragona-chA 2017 (5)}) 13... Ne8 {[%emt 0:23:36]} (13... Qa6 $5 {[%cal Re6c4]}) 14. f5 {[%emt 0:03:53]} Bc8 {[%emt 0:01:02]} 15. Qc2 {[%emt 0:05:24]} Nf6 {[%emt 0:01:56][%cal Be8f6,Bf6d7,Bd7f8][%mdl 32]} 16. h4 {[%emt 0:04:07]} d5 {[%emt 0:08:53]} 17. cxd5 {[%emt 0:04:08]} (17. exd5 $11 gxf5 18. g5 (18. gxf5 cxd5 19. h5 d4 $11) (18. dxc6 fxg4 19. Bd3 Qe5 $11)) 17... cxd5 $15 {[%emt 0:00:16]} 18. e5 {[%emt 0:06:17]} Nd7 {[%emt 0:03:19]} 19. e6 $2 {[%emt 0:04:09]} (19. fxg6 $11 hxg6 20. e6) 19... fxe6 $19 {[%emt 0:01:42] ...d4 would be deadly.} 20. fxg6 {[%emt 0:00:12] [#]} (20. Qd2 $142) 20... d4 $2 {[%emt 0:02:38]} (20... Qc7 $1 $19 {[%cal Rc7g3] ...Qg3+ is the strong threat.} 21. Rxf8+ (21. gxh7+ $2 {is the wrong capture.} Kh8 $19) 21... Nxf8 22. gxh7+ Kh8) 21. Rxf8+ $2 {[%emt 0:01:00]} (21. gxh7+ $14 Kh8 22. Rxf8+ {[%mdl 64] Remove Defender} Nxf8 23. Ne4 (23. Bf4 $2 e5 $19)) 21... Nxf8 {[%emt 0:00:14]} (21... Kxf8 $2 22. Rf1+ Nf6 23. Bxd4 $18) 22. Bf4 {[%emt 0:00:35] Wards off Qe5} (22. gxh7+ {is the only way for White.} Nxh7 23. Bd3 dxe3 24. Bxh7+ Kh8 25. Bd3) 22... e5 {[%emt 0:02:55][%cal Be6e5,Be5f4,Bf4f3][%mdl 32]} 23. gxh7+ {[%emt 0:00:36] [#]} Kh8 $1 {[%emt 0:05:49][%cal Od4c3]} 24. b4 {[%emt 0:05:09]} Qc7 {[%emt 0:01:43][%mdl 64] Pin} 25. Qb3 {[%emt 0:01:31]} (25. Bg3 $142) 25... Be6 {[%emt 0:00:09]} 26. Nd5 {[%emt 0:00:25]} Qd6 {[%emt 0:01:28]} ({And not} 26... exf4 27. Nxc7 Bxb3 28. Rxb3 $14) 27. Bc4 {[%emt 0:10:28]} exf4 {[%emt 0:00:46]} 28. g5 {[%emt 0:13:27]} Rd8 {[%emt 0:01:24]} 29. Nc7 {[%emt 0:04:27]} Qxc7 {[%emt 0:00:45]} 30. Bxe6 {[%emt 0:00:23]} d3 {[%emt 0:00:28]} 31. Bf5 {[%emt 0:02:39]} e6 {[%emt 0:00:33] ( -> ...f3)} 32. Be4 {[%emt 0:06:56]} f3 {[%emt 0:01:06] Black mates.} 33. Kf1 {[%emt 0:16:42]} Qg3 {[%emt 0:00:41]} 34. Rb2 {[%emt 0:00:18]} Bd4 {[%emt 0:00:17][%csl Gd4][%cal Rg3g1]} 35. Rg2 {[%emt 0:00:24]} fxg2+ {[%emt 0:00:08]} 36. Bxg2 {[%emt 0:01:51]} Qf2# {[%emt 0:00:33] Excellently played by Syrov!   Weighted Error Value: White=1.25/Black=0.40} 0-1

[Event "13th Rheinland-Pfalz-Open 2023"]
[Site "Neuwied-Engers"]
[Date "2023.06.08"]
[Round "1.7"]
[White "Weber, Samuel"]
[Black "Rieger, Isabelle"]
[Result "1-0"]
[Annotator "TA"]
[ECO "A24"]
[WhiteElo "2296"]
[BlackElo "1670"]
[PlyCount "44"]
[EventDate "2023.01.12"]
[EventType "swiss"]
[EventCountry "GER"]
[SourceTitle "playchess.com"]
[Source "ChessBase"]
[SourceQuality "1"]
[TimeControl "40/5400+30:1800+30"]

{[%evp 17,44,19,9,6,17,14,18,20,7,6,14,6,16,0,41,31,135,136,133,133,121,129,214,208,212,140,1018,1002,1657]} 1. Nf3 {[%emt 0:00:07]} Nf6 {[%emt 0:00:33]} 2. c4 {[%emt 0:00:07]} g6 {[%emt 0:01:16]} 3. Nc3 {[%emt 0:00:08]} Bg7 {[%emt 0:00:35]} 4. g3 {[%emt 0:00:28]} d6 {[%emt 0:02:06]} 5. Bg2 {[%emt 0:01:49]} O-O {[%emt 0:02:41]} 6. O-O {[%emt 0:00:08]} e5 {[%emt 0:02:21]} 7. d3 {[%emt 0:00:05]} a5 {[%emt 0:05:58]} 8. Rb1 {[%emt 0:00:22]} Na6 {[%emt 0:07:48]} 9. a3 {[%emt 0:01:10][%cal Ba2a3,Ba3b4,Bb4b5,Bb5b6][%mdl 32]} c6 {[%emt 0:06:16]} 10. b4 {[%emt 0:01:44] A24: English Opening vs King's Indian: Lines without ...Nc6.} axb4 {[%emt 0:01:56]} 11. axb4 {[%emt 0:00:24]} Re8 {[%emt 0:05:26]} 12. Qb3 {[%emt 0:03:07] [#] The position is equal.} Nc7 $146 {[%emt 0:08:01]} ({Predecessor:} 12... h6 13. Ba3 e4 14. dxe4 {½-½ Junker,A (1719)-Overesch,D (1849) Muensterland Verbandsklasse-A 0203 2002 (9.5)}) 13. Bg5 {[%emt 0:03:41]} h6 {[%emt 0:12:23]} 14. Bxf6 {[%emt 0:00:13]} Bxf6 {[%emt 0:01:01]} 15. Nd2 {[%emt 0:04:11]} Be6 {[%emt 0:07:31]} 16. b5 {[%emt 0:03:33]} d5 {[%emt 0:05:59]} (16... Bg5 $14) 17. b6 $16 {[%emt 0:03:11][%mdl 64] [#] Deflection} Na6 {[%emt 0:05:09]} 18. cxd5 {[%emt 0:00:08] White is more active.} cxd5 {[%emt 0:02:47]} 19. Nxd5 {[%emt 0:00:23]} Bg7 {[%emt 0:00:59] [#]} (19... Bg5 $16) 20. Rfc1 $1 $18 {[%emt 0:02:53][%cal Bf1c1,Bc1c4,Bc4c7][%mdl 32]} Rc8 {[%emt 0:01:22]} 21. Rc4 {[%emt 1:13:08]} Rc7 $2 {[%mdl 8192]} (21... Nc5 $16 22. Qc2 Bxd5 23. Rxc5 Bxg2) 22. Rxc7 {[%emt 0:00:00]} Qc8 {[%emt 0:00:49] Weighted Error Value: White=0.11 (very precise) /Black=0.33} 1-0

[Event "13th Rheinland-Pfalz-Open 2023"]
[Site "Neuwied-Engers"]
[Date "2023.06.08"]
[Round "1.8"]
[White "Lenz, Joshua"]
[Black "Stillger, Bernhard"]
[Result "1-0"]
[Annotator "TA"]
[ECO "B11"]
[WhiteElo "1665"]
[BlackElo "2289"]
[PlyCount "58"]
[EventDate "2023.01.12"]
[EventType "swiss"]
[EventCountry "GER"]
[SourceTitle "playchess.com"]
[Source "ChessBase"]
[SourceQuality "1"]
[TimeControl "40/5400+30:1800+30"]

{[%evp 10,58,23,-13,2,-1,4,-18,-9,-35,0,-16,-9,-14,-14,-33,-27,-77,-80,-86,-78,-135,-135,-134,-145,-143,-138,-143,-108,-145,-105,-111,-95,-97,-102,-215,-220,-239,-237,-343,-339,-480,-472,-894,-900,-885,-874,-984,-969,-966,-977]} 1. e4 {[%emt 0:00:03]} c6 {[%emt 0:00:31]} 2. Nf3 {[%emt 0:00:13]} d5 {[%emt 0:00:29]} 3. Nc3 {[%emt 0:00:07]} Bg4 {[%emt 0:02:03]} 4. h3 {[%emt 0:00:28]} Bxf3 {[%emt 0:00:25]} 5. Qxf3 {[%emt 0:01:06]} e6 {[%emt 0:00:11]} 6. b3 {[%emt 0:05:08]} g6 {[%emt 0:12:56] B11: Caro-Kann: Two Knights Variation.} 7. Bb2 {[%emt 0:03:40][%cal Oc3d5]} Bg7 {[%emt 0:00:31]} 8. Bd3 {[%emt 0:05:50]} Nd7 {[%emt 0:01:43][%cal Bb8d7,Bd7e5,Be5d3][%mdl 32] [#] The position is equal.} 9. exd5 $146 {[%emt 0:02:55]} ({Predecessor:} 9. O-O Ne7 10. Rae1 O-O 11. Ba1 dxe4 12. Nxe4 Bxa1 13. Rxa1 Nd5 14. Qg3 f5 15. Ng5 {0-1 Bruntse,K-Kapicakova,L (1488) EU-ch Online U14 Girls rapid 2020 (3)}) 9... Ne5 {[%emt 0:03:58]} 10. Qg3 {[%emt 0:01:16]} (10. Qf4 $5 {[%cal Rd5e6]}) 10... Nxd3+ {[%emt 0:00:16]} 11. Qxd3 {[%emt 0:00:32]} cxd5 {[%emt 0:00:27]} 12. O-O {[%emt 0:00:44]} Ne7 {[%emt 0:04:51]} 13. Ba3 {[%emt 0:02:02]} (13. Nd1 $11 O-O 14. Bxg7 Kxg7 15. c3) 13... O-O $17 {[%emt 0:06:40]} 14. Rae1 {[%emt 0:00:43]} Re8 {[%emt 0:02:23]} 15. Nd1 {[%emt 0:31:10]} (15. Bxe7 $142 Rxe7 16. a4) 15... Nc6 {[%emt 0:04:31]} 16. c3 {[%emt 0:03:49]} Qa5 {[%emt 0:06:04]} 17. Bd6 {[%emt 0:00:34]} Rad8 {[%emt 0:03:06]} 18. b4 {[%emt 0:01:30]} Qb6 {[%emt 0:08:04]} 19. Qg3 {[%emt 0:05:52]} e5 {[%emt 0:03:52]} 20. Bc5 {[%emt 0:01:20]} Qa6 {[%emt 0:01:49]} 21. f4 {[%emt 0:13:41]} b6 $36 {[%emt 0:09:32][%mdl 2048] Black is on the roll.} 22. Be3 {[%emt 0:03:07]} (22. Bf2 $17 {is a better defense.}) 22... d4 $19 {[%emt 0:01:28]} (22... Qxa2 23. fxe5 Nxe5 24. Bg5 $11) 23. Bf2 {[%emt 0:06:02]} e4 {[%emt 0:03:33]} (23... Qxa2 24. b5 Na5 25. fxe5) 24. Kh1 {[%emt 0:05:30]} (24. f5 {keeps fighting.}) 24... e3 {[%emt 0:04:03][%mdl 64] [#] Deflection} ({Inferior is} 24... Qxa2 25. b5 $17) 25. dxe3 {[%emt 0:01:10]} (25. Nxe3 $142 dxe3 26. Bxe3) 25... dxc3 {[%emt 0:00:49] Black is clearly winning.} ({Not} 25... Qxa2 26. exd4 Ne7 27. Qf3 $16) 26. Qf3 {[%emt 0:01:17]} (26. b5 $142 Qxb5 27. e4) 26... c2 {[%emt 0:01:47]} 27. Qxc6 {[%emt 0:00:22]} Rc8 {[%emt 0:00:03]} ({Weaker is} 27... cxd1=N 28. Rxd1 Qxa2 29. b5 $11) 28. Qd7 {[%emt 0:02:23]} c1=Q {[%emt 0:00:17] [#] And now ...Red8 would win.} 29. b5 {[%emt 0:00:32]} Qxa2 {[%emt 0:00:58][%mdl 32768] Weighted Error Value: White=0.56/Black=0.07 (flawless) . Loss on time!?} 1-0

[Event "13th Rheinland-Pfalz-Open 2023"]
[Site "Neuwied-Engers"]
[Date "2023.06.08"]
[Round "1.9"]
[White "Ollenberger, Roland"]
[Black "Nagel, Ralf"]
[Result "1-0"]
[Annotator "TA"]
[ECO "A00"]
[WhiteElo "2280"]
[BlackElo "1660"]
[PlyCount "73"]
[EventDate "2023.01.12"]
[EventType "swiss"]
[EventCountry "GER"]
[SourceTitle "playchess.com"]
[Source "ChessBase"]
[SourceQuality "1"]
[TimeControl "40/5400+30:1800+30"]

{[%evp 9,73,-45,-10,-19,76,83,70,52,60,32,95,87,119,125,163,170,168,171,178,143,171,185,256,257,268,280,284,270,332,335,327,325,318,325,309,287,336,282,420,399,506,494,586,565,562,572,551,552,543,531,534,523,754,754,6813,5402,5212,529,5185,2337,7123,7785,6295,6295,6075,2279]} 1. Nc3 {[%emt 0:00:05]} d5 {[%emt 0:00:48][%cal Bd7d5,Bd5d4][%mdl 32]} 2. e4 {[%emt 0:01:00]} d4 {[%emt 0:00:06]} 3. Nce2 {[%emt 0:00:07]} c5 {[%emt 0:02:39]} 4. Nf3 {[%emt 0:00:44]} Nc6 {[%emt 0:00:10]} 5. Ng3 {[%emt 0:00:08]} e6 {[%emt 0:05:29]} 6. Bb5 {[%emt 0:01:30] A00: Irregular Openings.} a6 {[%emt 0:03:25]} (6... Nge7 $11 {remains equal.}) 7. Bxc6+ $16 {[%emt 0:00:37]} bxc6 {[%emt 0:00:02] [#]} 8. d3 $146 {[%emt 0:00:22] White is slightly better.} ({Predecessor:} 8. O-O Ne7 9. d3 Ng6 10. h4 Bd6 11. h5 Ne5 12. Nxe5 Bxe5 13. Qg4 h6 14. f4 {1-0 Hoff,G (1559)-Kling,G (1725) HSG/BUE-ch Hamburg 2003 (5)}) 8... Qc7 {[%emt 0:00:33] Wards off Ne5} 9. O-O {[%emt 0:02:09]} Bd6 {[%emt 0:04:24]} (9... e5 $14) 10. Qe2 {[%emt 0:03:30]} f6 {[%emt 0:14:31] [#]} 11. e5 $1 {[%emt 0:02:51][%mdl 512]} Bxe5 {[%emt 0:03:08]} (11... fxe5 12. Ne4) 12. Nxe5 {[%emt 0:00:18]} Qxe5 {[%emt 0:06:20]} 13. Qxe5 {[%emt 0:00:18]} fxe5 {[%emt 0:00:06]} 14. b3 {[%emt 0:03:01][%cal Bb2b3,Bb3c4][%mdl 32]} a5 {[%emt 0:12:13]} 15. Ba3 {[%emt 0:07:48]} c4 {[%emt 0:04:44]} (15... Nf6 {was worth a try.} 16. Bxc5 Nd7) 16. bxc4 $18 {[%emt 0:00:27]} Ne7 {[%emt 0:01:33]} 17. Rfe1 {[%emt 0:00:56]} Ng6 {[%emt 0:00:40]} 18. Rab1 {[%emt 0:00:36]} Kd7 {[%emt 0:00:31]} 19. Ne4 {[%emt 0:00:12][%cal Bg3e4,Be4g5,Bg5f3,Bf3d4][%mdl 32]} Re8 {[%emt 0:01:15]} 20. Ng5 {[%emt 0:02:22]} h6 {[%emt 0:08:47]} 21. Nf3 {[%emt 0:02:46]} Kc7 {[%emt 0:02:41]} 22. h4 {[%emt 0:01:01][%cal Bh2h4,Bh4h5][%mdl 32]} ({Don't take} 22. Nxe5 Nxe5 23. Rxe5 Rb8 24. Rxb8 Kxb8) 22... a4 {[%emt 0:03:12]} 23. h5 {[%emt 0:00:26]} ({Resist} 23. Nxe5 Nxe5 24. Rxe5 Bd7) 23... Ne7 {[%emt 0:01:56]} (23... Nf8 $142 24. Nxe5 Nd7) 24. Rxe5 {[%emt 0:00:33]} Ng8 {[%emt 0:03:48] Black is weak on the dark squares} 25. Nxd4 {[%emt 0:00:42] White is clearly winning.} Bd7 {[%emt 0:00:34]} 26. Rbe1 {[%emt 0:00:21]} Nf6 {[%emt 0:00:23]} 27. f3 {[%emt 0:00:58] Prevents Ng4} Ra7 {[%emt 0:08:29]} 28. Nxe6+ {[%emt 0:02:40]} Bxe6 {[%emt 0:02:46]} 29. Rxe6 {[%emt 0:00:06]} Rxe6 {[%emt 0:01:02]} 30. Rxe6 {[%emt 0:00:05]} Nxh5 {[%emt 0:00:17][%mdl 4096] Endgame KRB-KRN} 31. Re7+ {[%emt 0:00:07]} Kb8 {[%emt 0:00:06]} 32. Bd6+ {[%emt 0:00:11]} Ka8 {[%emt 0:00:15]} 33. Rxa7+ {[%emt 0:00:21]} Kxa7 {[%emt 0:00:09]} 34. Be5 {[%emt 0:00:09]} Kb6 {[%emt 0:00:48]} 35. g4 {[%emt 0:00:17]} Nf6 {[%emt 0:00:26]} 36. Bxf6 {[%emt 0:00:11]} gxf6 {[%emt 0:00:06]} 37. c3 {[%emt 1:09:05] Black got outplayed after the opening.   Weighted Error Value: White=0.10 (very precise) /Black=0.47} (37. Kf2 $142 Kc5 38. c3) 1-0